[Event "Late-Titled-Tuesday-Blitz-April-30-2024"]
[Site "Chess.com"]
[Date "2024.04.30"]
[Round "8"]
[White "yaguigor"]
[Black "ExchangeAB"]
[Result "1/2-1/2"]
[WhiteElo "2552"]
[BlackElo "2460"]
[TimeControl "180+1"]
[EndTime "15:30:01 PDT"]
[Termination "Game drawn - insufficient material"]

1. e4 {[%clk 0:03:00.9]} 1... c6 {[%clk 0:03:00.2]} 2. d4 {[%clk 0:02:59.7]}
2... d5 {[%clk 0:03:01.1]} 3. Nc3 {[%clk 0:02:59.3]} 3... dxe4 {[%clk
0:03:01.4]} 4. Nxe4 {[%clk 0:03:00]} 4... Nf6 {[%clk 0:03:02.3]} 5. Nxf6+ {[%clk
0:02:59.8]} 5... exf6 {[%clk 0:03:03.2]} 6. c3 {[%clk 0:02:59.9]} 6... Bd6
{[%clk 0:03:03.4]} 7. Bd3 {[%clk 0:03:00.1]} 7... O-O {[%clk 0:03:04]} 8. Qc2
{[%clk 0:02:59.2]} 8... Re8+ {[%clk 0:03:04.7]} 9. Ne2 {[%clk 0:02:59.1]} 9...
h6 {[%clk 0:03:05.6]} 10. Be3 {[%clk 0:02:55]} 10... Nd7 {[%clk 0:03:05.7]} 11.
O-O-O {[%clk 0:02:54.3]} 11... Nf8 {[%clk 0:03:06.4]} 12. Kb1 {[%clk 0:02:53.3]}
12... a5 {[%clk 0:03:07]} 13. c4 {[%clk 0:02:52.1]} 13... a4 {[%clk 0:02:58.5]}
14. a3 {[%clk 0:02:41.2]} 14... Bd7 {[%clk 0:02:54.3]} 15. c5 {[%clk 0:02:37]}
15... Bc7 {[%clk 0:02:51.5]} 16. Nc3 {[%clk 0:02:37.5]} 16... b5 {[%clk
0:02:43.2]} 17. cxb6 {[%clk 0:02:36.1]} 17... Bxb6 {[%clk 0:02:43.3]} 18. Nxa4
{[%clk 0:02:36.2]} 18... Re6 {[%clk 0:02:38.4]} 19. Nxb6 {[%clk 0:02:31.2]}
19... Qxb6 {[%clk 0:02:34.4]} 20. d5 {[%clk 0:02:31.6]} 20... Rxe3 {[%clk
0:02:29.3]} 21. fxe3 {[%clk 0:02:30.8]} 21... cxd5 {[%clk 0:02:25]} 22. Qc3
{[%clk 0:02:30]} 22... Ne6 {[%clk 0:02:20.8]} 23. Bf5 {[%clk 0:02:24.5]} 23...
Bc6 {[%clk 0:02:12.6]} 24. Rc1 {[%clk 0:02:18.4]} 24... Bb7 {[%clk 0:02:10.8]}
25. Qb4 {[%clk 0:02:15.5]} 25... Qxb4 {[%clk 0:01:34.5]} 26. axb4 {[%clk
0:02:16.4]} 26... Ra4 {[%clk 0:01:34.2]} 27. b5 {[%clk 0:02:10.6]} 27... Rb4
{[%clk 0:01:33.6]} 28. Bxe6 {[%clk 0:02:10.5]} 28... fxe6 {[%clk 0:01:33.2]} 29.
Rc5 {[%clk 0:02:11.3]} 29... d4 {[%clk 0:01:18.4]} 30. exd4 {[%clk 0:02:04.7]}
30... Bxg2 {[%clk 0:01:17.9]} 31. Rd1 {[%clk 0:01:58.9]} 31... f5 {[%clk
0:01:07.8]} 32. Kc2 {[%clk 0:01:55.1]} 32... Bd5 {[%clk 0:01:06.9]} 33. Ra1
{[%clk 0:01:29]} 33... Kf7 {[%clk 0:00:56.5]} 34. Ra7+ {[%clk 0:01:28.2]} 34...
Kf6 {[%clk 0:00:55.9]} 35. h4 {[%clk 0:01:24.4]} 35... g5 {[%clk 0:00:50.7]} 36.
h5 {[%clk 0:01:17.6]} 36... g4 {[%clk 0:00:49.3]} 37. Ra6 {[%clk 0:01:11.9]}
37... Kg5 {[%clk 0:00:45.9]} 38. Kc3 {[%clk 0:01:11.5]} 38... Rb3+ {[%clk
0:00:45.3]} 39. Kc2 {[%clk 0:01:11.8]} 39... Rb4 {[%clk 0:00:45.6]} 40. b6
{[%clk 0:01:07.8]} 40... g3 {[%clk 0:00:42.7]} 41. Kc3 {[%clk 0:00:58.3]} 41...
Rb3+ {[%clk 0:00:41.7]} 42. Kc2 {[%clk 0:00:58.6]} 42... g2 {[%clk 0:00:34.4]}
43. Ra1 {[%clk 0:00:57.1]} 43... Rxb6 {[%clk 0:00:33.1]} 44. Rg1 {[%clk
0:00:56.2]} 44... Be4+ {[%clk 0:00:25.8]} 45. Kc3 {[%clk 0:00:55.5]} 45... Kxh5
{[%clk 0:00:25.7]} 46. Re5 {[%clk 0:00:50.5]} 46... Kg4 {[%clk 0:00:24]} 47.
Rxe4+ {[%clk 0:00:50.1]} 47... fxe4 {[%clk 0:00:24.9]} 48. Rxg2+ {[%clk
0:00:50.5]} 48... Kf3 {[%clk 0:00:25.3]} 49. Rh2 {[%clk 0:00:48.4]} 49... Rc6+
{[%clk 0:00:17]} 50. Kd2 {[%clk 0:00:45.8]} 50... e3+ {[%clk 0:00:17.5]} 51. Kd3
{[%clk 0:00:46.1]} 51... e5 {[%clk 0:00:15.2]} 52. Rh3+ {[%clk 0:00:45.1]} 52...
Kf4 {[%clk 0:00:15.1]} 53. Rxe3 {[%clk 0:00:44.8]} 53... exd4 {[%clk 0:00:15.1]}
54. Re4+ {[%clk 0:00:45.4]} 54... Kf3 {[%clk 0:00:14.6]} 55. Rxd4 {[%clk
0:00:44.9]} 55... h5 {[%clk 0:00:14.8]} 56. Rh4 {[%clk 0:00:41.7]} 56... Rc5
{[%clk 0:00:14.1]} 57. b4 {[%clk 0:00:41.9]} 57... Rb5 {[%clk 0:00:13.9]} 58.
Kc4 {[%clk 0:00:41.2]} 58... Rg5 {[%clk 0:00:13.9]} 59. b5 {[%clk 0:00:41.3]}
59... Kg3 {[%clk 0:00:14.4]} 60. Rd4 {[%clk 0:00:39.7]} 60... h4 {[%clk
0:00:13.9]} 61. b6 {[%clk 0:00:40.4]} 61... Rg8 {[%clk 0:00:13.4]} 62. Rd1
{[%clk 0:00:38.6]} 62... Kg2 {[%clk 0:00:13.1]} 63. Rd2+ {[%clk 0:00:36.9]}
63... Kg3 {[%clk 0:00:13.1]} 64. Rd1 {[%clk 0:00:36.5]} 64... Kg2 {[%clk
0:00:13.3]} 65. Rd2+ {[%clk 0:00:34]} 65... Kg3 {[%clk 0:00:13.3]} 66. Rd7
{[%clk 0:00:20.9]} 66... h3 {[%clk 0:00:11.9]} 67. b7 {[%clk 0:00:21.1]} 67...
h2 {[%clk 0:00:11]} 68. Rg7+ {[%clk 0:00:20.6]} 68... Rxg7 {[%clk 0:00:09.7]}
69. b8=Q+ {[%clk 0:00:20.7]} 69... Kg2 {[%clk 0:00:06.6]} 70. Qa8+ {[%clk
0:00:18.8]} 70... Kg1 {[%clk 0:00:06.4]} 71. Qa1+ {[%clk 0:00:18.2]} 71... Kg2
{[%clk 0:00:06.8]} 72. Qxg7+ {[%clk 0:00:18.2]} 72... Kh1 {[%clk 0:00:07.4]} 73.
Qb7+ {[%clk 0:00:16.3]} 73... Kg1 {[%clk 0:00:08.3]} 74. Qb1+ {[%clk 0:00:13.8]}
74... Kg2 {[%clk 0:00:08.7]} 75. Qe4+ {[%clk 0:00:13.2]} 75... Kg1 {[%clk
0:00:09.1]} 76. Qg4+ {[%clk 0:00:13]} 76... Kh1 {[%clk 0:00:08.6]} 77. Qf3+
{[%clk 0:00:12.7]} 77... Kg1 {[%clk 0:00:09.1]} 78. Qg3+ {[%clk 0:00:12.8]}
78... Kh1 {[%clk 0:00:09.5]} 79. Qe1+ {[%clk 0:00:11.9]} 79... Kg2 {[%clk
0:00:09.7]} 80. Qe2+ {[%clk 0:00:12.1]} 80... Kg1 {[%clk 0:00:09.5]} 81. Qe3+
{[%clk 0:00:11.6]} 81... Kg2 {[%clk 0:00:09.9]} 82. Qg5+ {[%clk 0:00:10.8]}
82... Kh1 {[%clk 0:00:09.8]} 83. Qf4 {[%clk 0:00:09.7]} 83... Kg2 {[%clk
0:00:09.8]} 84. Qg4+ {[%clk 0:00:09.4]} 84... Kh1 {[%clk 0:00:09.4]} 85. Qh3
{[%clk 0:00:09.5]} 85... Kg1 {[%clk 0:00:09.6]} 86. Qg3+ {[%clk 0:00:09.5]}
86... Kh1 {[%clk 0:00:09.7]} 87. Qxh2+ {[%clk 0:00:07.6]} 87... Kxh2 {[%clk
0:00:10]} 1/2-1/2

[Event "Late-Titled-Tuesday-Blitz-April-30-2024"]
[Site "Chess.com"]
[Date "2024.04.30"]
[Round "8"]
[White "kemelgallo"]
[Black "MyDream003"]
[Result "1-0"]
[WhiteElo "2629"]
[BlackElo "2825"]
[TimeControl "180+1"]
[EndTime "15:30:12 PDT"]
[Termination "kemelgallo won on time"]

1. e4 {[%clk 0:03:00.9]} 1... c6 {[%clk 0:02:57.6]} 2. Nf3 {[%clk 0:02:59.6]}
2... d5 {[%clk 0:02:58]} 3. Nc3 {[%clk 0:03:00.5]} 3... Bg4 {[%clk 0:02:57.7]}
4. h3 {[%clk 0:03:00.5]} 4... Bxf3 {[%clk 0:02:58.2]} 5. Qxf3 {[%clk 0:03:01.4]}
5... e6 {[%clk 0:02:59]} 6. g3 {[%clk 0:03:00.6]} 6... g6 {[%clk 0:02:59]} 7.
Bg2 {[%clk 0:03:00.2]} 7... Bg7 {[%clk 0:02:59.6]} 8. O-O {[%clk 0:02:59.8]}
8... Ne7 {[%clk 0:03:00.1]} 9. Re1 {[%clk 0:02:57.8]} 9... Nd7 {[%clk
0:02:59.6]} 10. d3 {[%clk 0:02:37.9]} 10... O-O {[%clk 0:02:53.4]} 11. Bg5
{[%clk 0:02:31.8]} 11... Re8 {[%clk 0:02:50.7]} 12. Rad1 {[%clk 0:02:23.6]}
12... a5 {[%clk 0:02:30.7]} 13. d4 {[%clk 0:02:17.9]} 13... h6 {[%clk
0:02:24.2]} 14. Bc1 {[%clk 0:02:13]} 14... Qb6 {[%clk 0:02:21.5]} 15. e5 {[%clk
0:02:08.2]} 15... c5 {[%clk 0:02:18.8]} 16. Na4 {[%clk 0:02:04.5]} 16... Qc7
{[%clk 0:02:14.7]} 17. c3 {[%clk 0:01:44.4]} 17... b5 {[%clk 0:02:00.1]} 18.
Nxc5 {[%clk 0:01:41.1]} 18... Nxc5 {[%clk 0:02:01]} 19. dxc5 {[%clk 0:01:41.3]}
19... Qxc5 {[%clk 0:02:01.7]} 20. h4 {[%clk 0:01:32.3]} 20... h5 {[%clk
0:01:58.3]} 21. Bg5 {[%clk 0:01:28.4]} 21... Nf5 {[%clk 0:01:57.2]} 22. Bh3
{[%clk 0:01:25]} 22... Nh6 {[%clk 0:01:48.4]} 23. Qf4 {[%clk 0:01:21.3]} 23...
Nf5 {[%clk 0:01:43.4]} 24. Bxf5 {[%clk 0:01:21]} 24... exf5 {[%clk 0:01:43.4]}
25. Bf6 {[%clk 0:01:17.8]} 25... Ra6 {[%clk 0:01:29.3]} 26. Bxg7 {[%clk
0:01:09.3]} 26... Kxg7 {[%clk 0:01:30.2]} 27. Qd4 {[%clk 0:01:08.6]} 27... Qc8
{[%clk 0:01:07.5]} 28. Qxd5 {[%clk 0:01:05.8]} 28... Qb8 {[%clk 0:01:06.1]} 29.
f4 {[%clk 0:01:00.4]} 29... Rb6 {[%clk 0:00:59.3]} 30. Qd4 {[%clk 0:00:39.4]}
30... Kg8 {[%clk 0:00:55.5]} 31. Qf2 {[%clk 0:00:38.2]} 31... Rc6 {[%clk
0:00:54.1]} 32. Rd4 {[%clk 0:00:36]} 32... Qc8 {[%clk 0:00:50.4]} 33. Red1
{[%clk 0:00:33.1]} 33... b4 {[%clk 0:00:43.7]} 34. cxb4 {[%clk 0:00:31.1]} 34...
axb4 {[%clk 0:00:44.6]} 35. Kh2 {[%clk 0:00:20.3]} 35... Qa8 {[%clk 0:00:37.2]}
36. Rxb4 {[%clk 0:00:18.1]} 36... Qxa2 {[%clk 0:00:35.6]} 37. Rd2 {[%clk
0:00:18]} 37... Qb1 {[%clk 0:00:22.4]} 38. Rbd4 {[%clk 0:00:13.9]} 38... Rcc8
{[%clk 0:00:17.1]} 39. Rd1 {[%clk 0:00:12.7]} 39... Qa2 {[%clk 0:00:17.4]} 40.
R4d2 {[%clk 0:00:12.8]} 40... Qb3 {[%clk 0:00:17.4]} 41. Qe2 {[%clk 0:00:12.1]}
41... Rb8 {[%clk 0:00:14.7]} 42. Kh3 {[%clk 0:00:11.3]} 42... Qb7 {[%clk
0:00:13.1]} 43. Kh2 {[%clk 0:00:10.9]} 43... Kg7 {[%clk 0:00:13.2]} 44. Qg2
{[%clk 0:00:10.7]} 44... Qb3 {[%clk 0:00:11.7]} 45. Qc6 {[%clk 0:00:10.5]} 45...
Re6 {[%clk 0:00:10.2]} 46. Qc7 {[%clk 0:00:09.9]} 46... Rb7 {[%clk 0:00:10.7]}
47. Qd8 {[%clk 0:00:10]} 47... Rb8 {[%clk 0:00:10.8]} 48. Qc7 {[%clk 0:00:09.3]}
48... Rbe8 {[%clk 0:00:06.8]} 49. Kh3 {[%clk 0:00:08.5]} 49... Rf8 {[%clk
0:00:07.1]} 50. Qc3 {[%clk 0:00:05.6]} 50... Qb7 {[%clk 0:00:06.8]} 51. Qe3
{[%clk 0:00:05]} 51... Rfe8 {[%clk 0:00:06.8]} 52. Qf2 {[%clk 0:00:05.1]} 52...
R6e7 {[%clk 0:00:06.8]} 53. Rd6 {[%clk 0:00:05.2]} 53... Kh7 {[%clk 0:00:07.1]}
54. R1d2 {[%clk 0:00:04.8]} 54... Rc7 {[%clk 0:00:07.2]} 55. Qg2 {[%clk
0:00:04.3]} 55... Qa7 {[%clk 0:00:06]} 56. Qd5 {[%clk 0:00:03.7]} 56... Ree7
{[%clk 0:00:05.1]} 57. e6 {[%clk 0:00:02.9]} 57... fxe6 {[%clk 0:00:02.5]} 58.
Rxe6 {[%clk 0:00:03.4]} 58... Red7 {[%clk 0:00:03.1]} 59. Rd6 {[%clk 0:00:03.4]}
59... Rg7 {[%clk 0:00:03.3]} 60. Qg2 {[%clk 0:00:02.4]} 60... Rce7 {[%clk
0:00:03.3]} 61. R6d3 {[%clk 0:00:02.5]} 61... Qc7 {[%clk 0:00:03.8]} 62. b4
{[%clk 0:00:02.8]} 62... Qb6 {[%clk 0:00:04.2]} 63. Rb2 {[%clk 0:00:03.2]} 63...
Rc7 {[%clk 0:00:04.5]} 64. Rd1 {[%clk 0:00:03.5]} 64... Rc3 {[%clk 0:00:04.7]}
65. b5 {[%clk 0:00:03.2]} 65... Qb8 {[%clk 0:00:05]} 66. b6 {[%clk 0:00:03.2]}
66... Qxf4 {[%clk 0:00:05.4]} 67. b7 {[%clk 0:00:02.7]} 67... Qb8 {[%clk
0:00:04.5]} 68. Rd4 {[%clk 0:00:01.4]} 68... f4 {[%clk 0:00:03.2]} 69. Rxf4
{[%clk 0:00:01.3]} 69... Qxf4 {[%clk 0:00:03.4]} 70. b8=Q {[%clk 0:00:02.2]}
70... Qf5+ {[%clk 0:00:03.5]} 71. Kh2 {[%clk 0:00:02.4]} 71... Rf7 {[%clk
0:00:03.9]} 72. Qf4 {[%clk 0:00:02.7]} 72... Qe6 {[%clk 0:00:03.7]} 73. Qfe4
{[%clk 0:00:02.5]} 73... Qf6 {[%clk 0:00:04]} 74. Re2 {[%clk 0:00:02.9]} 74...
Qd6 {[%clk 0:00:04.2]} 75. Qe5 {[%clk 0:00:03.3]} 75... Qd7 {[%clk 0:00:04.2]}
76. Qxc3 {[%clk 0:00:03]} 76... Qd6 {[%clk 0:00:04.3]} 77. Qe5 {[%clk
0:00:03.1]} 1-0

[Event "Late-Titled-Tuesday-Blitz-April-30-2024"]
[Site "Chess.com"]
[Date "2024.04.30"]
[Round "8"]
[White "LyonBeast"]
[Black "MITerryble"]
[Result "1/2-1/2"]
[WhiteElo "3128"]
[BlackElo "3040"]
[TimeControl "180+1"]
[EndTime "15:30:15 PDT"]
[Termination "Game drawn - insufficient material"]

1. e4 {[%clk 0:03:00.9]} 1... e6 {[%clk 0:02:55.6]} 2. Qe2 {[%clk 0:02:54.7]}
2... c5 {[%clk 0:02:55.3]} 3. Nf3 {[%clk 0:02:54.5]} 3... Nc6 {[%clk 0:02:55.9]}
4. g3 {[%clk 0:02:55.1]} 4... g6 {[%clk 0:02:56.5]} 5. c3 {[%clk 0:02:54]} 5...
Bg7 {[%clk 0:02:56.9]} 6. Bg2 {[%clk 0:02:54.5]} 6... Nge7 {[%clk 0:02:57.5]} 7.
O-O {[%clk 0:02:53.9]} 7... O-O {[%clk 0:02:58]} 8. d3 {[%clk 0:02:53.9]} 8...
d6 {[%clk 0:02:56.7]} 9. h4 {[%clk 0:02:53.3]} 9... h6 {[%clk 0:02:56.3]} 10.
Nbd2 {[%clk 0:02:52.9]} 10... Rb8 {[%clk 0:02:54.7]} 11. Nh2 {[%clk 0:02:50.4]}
11... b5 {[%clk 0:02:52.3]} 12. a3 {[%clk 0:02:43]} 12... a5 {[%clk 0:02:52.1]}
13. Ndf3 {[%clk 0:02:38.5]} 13... e5 {[%clk 0:02:46.7]} 14. h5 {[%clk
0:02:33.9]} 14... g5 {[%clk 0:02:44.5]} 15. g4 {[%clk 0:02:34.5]} 15... Qb6
{[%clk 0:02:35.8]} 16. Ne1 {[%clk 0:02:34.5]} 16... Nd8 {[%clk 0:02:36]} 17. Be3
{[%clk 0:02:26.4]} 17... Ne6 {[%clk 0:02:33.4]} 18. b4 {[%clk 0:02:20.6]} 18...
Qc7 {[%clk 0:02:33.3]} 19. Qd2 {[%clk 0:02:17.9]} 19... Nf4 {[%clk 0:02:29.5]}
20. Bf3 {[%clk 0:02:16.4]} 20... Be6 {[%clk 0:02:28.2]} 21. Ng2 {[%clk
0:02:13.5]} 21... Rfc8 {[%clk 0:02:25.1]} 22. Rfc1 {[%clk 0:02:13.5]} 22... Ra8
{[%clk 0:02:12.8]} 23. Ne1 {[%clk 0:01:27.2]} 23... Qd7 {[%clk 0:02:02.7]} 24.
bxa5 {[%clk 0:01:21.7]} 24... Rxa5 {[%clk 0:02:00.7]} 25. d4 {[%clk 0:01:22.3]}
25... Qc7 {[%clk 0:01:54]} 26. d5 {[%clk 0:01:07.7]} 26... Bd7 {[%clk 0:01:54]}
27. Nf1 {[%clk 0:01:08.4]} 27... Rca8 {[%clk 0:01:50.1]} 28. Bd1 {[%clk
0:01:05.3]} 28... Rxa3 {[%clk 0:01:41.8]} 29. Rxa3 {[%clk 0:01:06.2]} 29... Rxa3
{[%clk 0:01:42.1]} 30. Ng3 {[%clk 0:01:06.9]} 30... Qa5 {[%clk 0:01:41.1]} 31.
Nd3 {[%clk 0:00:58]} 31... Ra2 {[%clk 0:01:37.2]} 32. Rc2 {[%clk 0:00:58.3]}
32... Ra1 {[%clk 0:01:32]} 33. Rc1 {[%clk 0:00:56.3]} 33... Nc8 {[%clk
0:01:20.8]} 34. Qb2 {[%clk 0:00:22.6]} 34... Ra2 {[%clk 0:01:04.4]} 35. Qb1
{[%clk 0:00:23]} 35... Nb6 {[%clk 0:00:53.4]} 36. Nb2 {[%clk 0:00:20.4]} 36...
Ra3 {[%clk 0:00:49.9]} 37. Bd2 {[%clk 0:00:20.5]} 37... Qa8 {[%clk 0:00:41.5]}
38. Kh2 {[%clk 0:00:20.6]} 38... c4 {[%clk 0:00:31.1]} 39. Nf1 {[%clk
0:00:20.2]} 39... Qc8 {[%clk 0:00:25.3]} 40. Ne3 {[%clk 0:00:20.5]} 40... Qc5
{[%clk 0:00:24]} 41. Kg3 {[%clk 0:00:19.8]} 41... Nc8 {[%clk 0:00:24.2]} 42. Bf3
{[%clk 0:00:20]} 42... Ne7 {[%clk 0:00:23.8]} 43. Qc2 {[%clk 0:00:20.5]} 43...
Kh8 {[%clk 0:00:21]} 44. Rb1 {[%clk 0:00:20.8]} 44... Ng8 {[%clk 0:00:20.9]} 45.
Qd1 {[%clk 0:00:20.2]} 45... Nf6 {[%clk 0:00:21.2]} 46. Ra1 {[%clk 0:00:20.7]}
46... Qa7 {[%clk 0:00:20.5]} 47. Rxa3 {[%clk 0:00:20.3]} 47... Qxa3 {[%clk
0:00:21.4]} 48. Qb1 {[%clk 0:00:20.8]} 48... Bf8 {[%clk 0:00:20.1]} 49. Nbd1
{[%clk 0:00:21]} 49... Nd3 {[%clk 0:00:15.5]} 50. Nc2 {[%clk 0:00:17.7]} 50...
Qa7 {[%clk 0:00:15]} 51. Be3 {[%clk 0:00:17.3]} 51... Qa5 {[%clk 0:00:14.2]} 52.
Nb4 {[%clk 0:00:17]} 52... Nf4 {[%clk 0:00:11.5]} 53. Qa2 {[%clk 0:00:15.5]}
53... Qxa2 {[%clk 0:00:10.4]} 54. Nxa2 {[%clk 0:00:16.4]} 54... Be7 {[%clk
0:00:07.1]} 55. Nb4 {[%clk 0:00:16.6]} 55... Kg7 {[%clk 0:00:07.1]} 56. Nc6
{[%clk 0:00:16.9]} 56... Kf8 {[%clk 0:00:06.9]} 57. Nb4 {[%clk 0:00:14.5]} 57...
Ke8 {[%clk 0:00:07.2]} 58. Ba7 {[%clk 0:00:12.6]} 58... Bd8 {[%clk 0:00:07.4]}
59. Bb8 {[%clk 0:00:12.8]} 59... Be7 {[%clk 0:00:06.4]} 60. Ne3 {[%clk
0:00:13.2]} 60... Kd8 {[%clk 0:00:06.1]} 61. Nc6+ {[%clk 0:00:07.6]} 61... Bxc6
{[%clk 0:00:04.7]} 62. dxc6 {[%clk 0:00:08.5]} 62... Kc8 {[%clk 0:00:05.1]} 63.
Nf5 {[%clk 0:00:06.5]} 63... Kxb8 {[%clk 0:00:04.6]} 64. Nxe7 {[%clk 0:00:07.1]}
64... Kc7 {[%clk 0:00:04.7]} 65. Nf5 {[%clk 0:00:05.3]} 65... Ng8 {[%clk
0:00:05.2]} 66. Bd1 {[%clk 0:00:05.6]} 66... Kxc6 {[%clk 0:00:05.3]} 67. Kf3
{[%clk 0:00:06.3]} 67... Kc5 {[%clk 0:00:05.8]} 68. Ke3 {[%clk 0:00:06.9]} 68...
Ne6 {[%clk 0:00:05.1]} 69. Kd2 {[%clk 0:00:07]} 69... Nc7 {[%clk 0:00:05.2]} 70.
Ne3 {[%clk 0:00:05.1]} 70... Ne7 {[%clk 0:00:04.9]} 71. f3 {[%clk 0:00:05.1]}
71... d5 {[%clk 0:00:05.1]} 72. exd5 {[%clk 0:00:05.3]} 72... Ncxd5 {[%clk
0:00:06]} 73. Nf1 {[%clk 0:00:05.7]} 73... Nf6 {[%clk 0:00:05.4]} 74. Ng3 {[%clk
0:00:06.1]} 74... Kd5 {[%clk 0:00:05.7]} 75. Bc2 {[%clk 0:00:06.4]} 75... Kd6
{[%clk 0:00:06.2]} 76. Be4 {[%clk 0:00:06.4]} 76... Kc5 {[%clk 0:00:06.5]} 77.
Bb7 {[%clk 0:00:05.6]} 77... b4 {[%clk 0:00:06.7]} 78. cxb4+ {[%clk 0:00:06.3]}
78... Kxb4 {[%clk 0:00:07.6]} 79. Kc2 {[%clk 0:00:07]} 79... Kc5 {[%clk
0:00:07.8]} 80. Ba8 {[%clk 0:00:06.8]} 80... Kd4 {[%clk 0:00:07.9]} 81. Kd2
{[%clk 0:00:07.5]} 81... c3+ {[%clk 0:00:08.3]} 82. Kc2 {[%clk 0:00:08.2]} 82...
Nfd5 {[%clk 0:00:06.6]} 83. Bxd5 {[%clk 0:00:07.9]} 83... Nxd5 {[%clk 0:00:07]}
84. Nf5+ {[%clk 0:00:08.5]} 84... Kc4 {[%clk 0:00:07.5]} 85. Nd6+ {[%clk
0:00:08.7]} 85... Kb4 {[%clk 0:00:05.5]} 86. Nxf7 {[%clk 0:00:08.3]} 86... Ne3+
{[%clk 0:00:05.2]} 87. Kc1 {[%clk 0:00:08.1]} 87... e4 {[%clk 0:00:03]} 88. fxe4
{[%clk 0:00:06.5]} 88... Nxg4 {[%clk 0:00:03.4]} 89. e5 {[%clk 0:00:06.4]} 89...
Kc5 {[%clk 0:00:02.3]} 90. e6 {[%clk 0:00:05.9]} 90... Kc6 {[%clk 0:00:02.9]}
91. Kc2 {[%clk 0:00:06.5]} 91... Nf6 {[%clk 0:00:02.7]} 92. Kxc3 {[%clk
0:00:06.6]} 92... Nxh5 {[%clk 0:00:02.8]} 93. Kd4 {[%clk 0:00:07.1]} 93... Ng7
{[%clk 0:00:02.6]} 94. Nxh6 {[%clk 0:00:05.9]} 94... Nxe6+ {[%clk 0:00:03.1]}
95. Ke5 {[%clk 0:00:06.5]} 95... Nc5 {[%clk 0:00:03.7]} 96. Kf5 {[%clk
0:00:06.8]} 96... Kd5 {[%clk 0:00:04.3]} 97. Kxg5 {[%clk 0:00:07.4]} 1/2-1/2